[Event "*** Titled Tuesday 3|2 Blitz"]
[Site "Chess.com"]
[Date "2015.11.03"]
[Round "4"]
[White "VovAn1991"]
[Black "MITerryble"]
[Result "1/2-1/2"]
[WhiteElo "2487"]
[BlackElo "2587"]
[TimeControl "180+2"]
[EndTime "11:49:28 PST"]
[Termination "Game drawn by agreement"]

1. e4 {[%clk 0:03:01.9]} 1... e6 {[%clk 0:03:00.7]} 2. d4 {[%clk 0:03:01.9]}
2... d5 {[%clk 0:03:00.5]} 3. Nd2 {[%clk 0:03:02.4]} 3... Be7 {[%clk 0:03:01.4]}
4. c3 {[%clk 0:03:01]} 4... c5 {[%clk 0:03:02]} 5. dxc5 {[%clk 0:02:57.1]} 5...
Bxc5 {[%clk 0:02:58.3]} 6. exd5 {[%clk 0:02:52.2]} 6... exd5 {[%clk 0:02:58.9]}
7. Ngf3 {[%clk 0:02:52.7]} 7... Nf6 {[%clk 0:02:59.8]} 8. Bb5+ {[%clk 0:02:53]}
8... Bd7 {[%clk 0:02:58.3]} 9. Bxd7+ {[%clk 0:02:48.6]} 9... Qxd7 {[%clk
0:02:55.8]} 10. O-O {[%clk 0:02:50.5]} 10... O-O {[%clk 0:02:55.9]} 11. Nb3
{[%clk 0:02:51.6]} 11... Bb6 {[%clk 0:02:55]} 12. Re1 {[%clk 0:02:46.3]} 12...
Re8 {[%clk 0:02:42.7]} 13. Bg5 {[%clk 0:02:39.5]} 13... Ne4 {[%clk 0:02:36]} 14.
Be3 {[%clk 0:02:39.1]} 14... Bc7 {[%clk 0:02:25.8]} 15. Qd3 {[%clk 0:02:39]}
15... Nc6 {[%clk 0:02:19.1]} 16. Rad1 {[%clk 0:02:39.3]} 16... Rad8 {[%clk
0:02:20.1]} 17. Nbd4 {[%clk 0:02:31.2]} 17... Bb8 {[%clk 0:01:59.3]} 18. Nxc6
{[%clk 0:02:24.3]} 18... bxc6 {[%clk 0:01:54.5]} 19. c4 {[%clk 0:02:25.5]} 19...
Qb7 {[%clk 0:01:51.2]} 20. b3 {[%clk 0:02:19.8]} 20... Bc7 {[%clk 0:01:27.5]}
21. cxd5 {[%clk 0:02:19.4]} 21... cxd5 {[%clk 0:01:27.2]} 22. Bd4 {[%clk
0:02:20.5]} 22... Ba5 {[%clk 0:01:15.7]} 23. Re2 {[%clk 0:02:15.1]} 23... Rc8
{[%clk 0:01:16.8]} 24. Rc2 {[%clk 0:02:04.2]} 24... Rxc2 {[%clk 0:01:15.7]} 25.
Qxc2 {[%clk 0:02:06.1]} 25... Rc8 {[%clk 0:01:17.1]} 26. Qd3 {[%clk 0:02:07.1]}
26... f6 {[%clk 0:01:07.8]} 27. g3 {[%clk 0:02:03.7]} 27... a6 {[%clk
0:00:52.5]} 28. a3 {[%clk 0:02:04]} 28... Bc3 {[%clk 0:00:47.5]} 29. b4 {[%clk
0:01:45.6]} 29... Qb5 {[%clk 0:00:36.8]} 30. Kg2 {[%clk 0:01:43.5]} 30... Qxd3
{[%clk 0:00:34.1]} 31. Rxd3 {[%clk 0:01:45.4]} 31... Bxd4 {[%clk 0:00:35]} 32.
Nxd4 {[%clk 0:01:45.3]} 32... Rc3 {[%clk 0:00:34.8]} 33. Rxc3 {[%clk 0:01:44.8]}
33... Nxc3 {[%clk 0:00:36.7]} 34. Kf3 {[%clk 0:01:42.1]} 34... Kf7 {[%clk
0:00:37.3]} 35. Ke3 {[%clk 0:01:43.3]} 35... g6 {[%clk 0:00:27.3]} 36. f3 {[%clk
0:01:43.6]} 36... Ke7 {[%clk 0:00:24.6]} 37. Kd3 {[%clk 0:01:44.1]} 37... Nb5
{[%clk 0:00:25.6]} 38. a4 {[%clk 0:01:33.1]} 38... Nc7 {[%clk 0:00:20.8]} 39. b5
{[%clk 0:01:29.5]} 39... axb5 {[%clk 0:00:20.1]} 40. Nxb5 {[%clk 0:01:31.4]}
40... Ne6 {[%clk 0:00:20.2]} 41. a5 {[%clk 0:01:31.4]} 41... Kd7 {[%clk
0:00:21.5]} 42. Kc3 {[%clk 0:01:28.2]} 42... h5 {[%clk 0:00:20.5]} 43. a6 {[%clk
0:01:24.6]} 43... Kc8 {[%clk 0:00:16.4]} 44. Kb4 {[%clk 0:01:25.2]} 44... Kb8
{[%clk 0:00:13.9]} 45. Ka5 {[%clk 0:01:19.1]} 45... g5 {[%clk 0:00:14.1]} 46.
Kb4 {[%clk 0:01:16.9]} 46... h4 {[%clk 0:00:13.9]} 47. gxh4 {[%clk 0:01:15.1]}
47... gxh4 {[%clk 0:00:15.8]} 48. Nc3 {[%clk 0:01:12.8]} 48... Ng5 {[%clk
0:00:09.9]} 49. f4 {[%clk 0:01:07.3]} 49... Nf3 {[%clk 0:00:10.8]} 50. Nxd5
{[%clk 0:01:08.1]} 50... Nxh2 {[%clk 0:00:10.5]} 51. Kb5 {[%clk 0:01:08]} 51...
Ka7 {[%clk 0:00:11.8]} 52. Nxf6 {[%clk 0:01:04.9]} 52... Nf3 {[%clk 0:00:11.3]}
53. Ng4 {[%clk 0:01:05.4]} 53... h3 {[%clk 0:00:10.7]} 54. Ka5 {[%clk
0:01:01.1]} 54... h2 {[%clk 0:00:10.4]} 55. Nxh2 {[%clk 0:00:50]} 55... Nxh2
{[%clk 0:00:11.1]} 56. f5 {[%clk 0:00:50.7]} 1/2-1/2

[Event "*** Titled Tuesday 3|2 Blitz"]
[Site "Chess.com"]
[Date "2015.11.03"]
[Round "4"]
[White "GregShahade"]
[Black "armago"]
[Result "1-0"]
[WhiteElo "2306"]
[BlackElo "2223"]
[TimeControl "180+2"]
[EndTime "11:49:40 PST"]
[Termination "GregShahade won on time"]

1. e4 {[%clk 0:02:58.6]} 1... c5 {[%clk 0:02:59.8]} 2. Nf3 {[%clk 0:02:59.3]}
2... Nc6 {[%clk 0:02:59.3]} 3. d4 {[%clk 0:03:00.3]} 3... cxd4 {[%clk
0:03:00.2]} 4. Nxd4 {[%clk 0:03:02.2]} 4... Nf6 {[%clk 0:03:01.2]} 5. Nc3 {[%clk
0:03:03]} 5... e5 {[%clk 0:03:02.2]} 6. Ndb5 {[%clk 0:03:03.9]} 6... d6 {[%clk
0:03:03.1]} 7. Bg5 {[%clk 0:03:05]} 7... a6 {[%clk 0:03:03]} 8. Na3 {[%clk
0:03:06.5]} 8... b5 {[%clk 0:03:03.3]} 9. Nd5 {[%clk 0:03:08]} 9... Be7 {[%clk
0:03:02.8]} 10. Bxf6 {[%clk 0:03:09.5]} 10... Bxf6 {[%clk 0:03:03.6]} 11. c4
{[%clk 0:03:11]} 11... b4 {[%clk 0:03:04.4]} 12. Nc2 {[%clk 0:03:11.1]} 12...
O-O {[%clk 0:03:05.3]} 13. Be2 {[%clk 0:03:12.6]} 13... Bg5 {[%clk 0:03:02.8]}
14. O-O {[%clk 0:03:13.6]} 14... a5 {[%clk 0:02:59.9]} 15. b3 {[%clk 0:03:14.6]}
15... Be6 {[%clk 0:02:55.7]} 16. Qd3 {[%clk 0:03:14.8]} 16... Nb8 {[%clk
0:02:56.2]} 17. a3 {[%clk 0:03:09.1]} 17... bxa3 {[%clk 0:02:55.8]} 18. Rxa3
{[%clk 0:02:58.1]} 18... Nd7 {[%clk 0:02:56.7]} 19. Rfa1 {[%clk 0:02:47.6]}
19... Nc5 {[%clk 0:02:56.8]} 20. Qf3 {[%clk 0:02:46.2]} 20... f5 {[%clk
0:02:51.9]} 21. exf5 {[%clk 0:02:31.6]} 21... Bxf5 {[%clk 0:02:52.1]} 22. Nce3
{[%clk 0:02:05.1]} 22... e4 {[%clk 0:02:46.5]} 23. Qg3 {[%clk 0:01:27.2]} 23...
Bh4 {[%clk 0:02:37.5]} 24. Qf4 {[%clk 0:01:26.5]} 24... Bg6 {[%clk 0:02:36.3]}
25. Qg4 {[%clk 0:01:13.7]} 25... Bxf2+ {[%clk 0:02:34.7]} 26. Kh1 {[%clk
0:01:14]} 26... Bxe3 {[%clk 0:02:16]} 27. Nxe3 {[%clk 0:01:15.9]} 27... Rb8
{[%clk 0:02:11.1]} 28. Rb1 {[%clk 0:00:39.4]} 28... Qf6 {[%clk 0:01:58.6]} 29.
Nd5 {[%clk 0:00:27.8]} 29... Qf2 {[%clk 0:01:53]} 30. h3 {[%clk 0:00:24.7]}
30... Bf5 {[%clk 0:01:51.9]} 31. Ne7+ {[%clk 0:00:22.8]} 31... Kh8 {[%clk
0:01:52.3]} 32. Nxf5 {[%clk 0:00:23.1]} 32... Qxf5 {[%clk 0:01:52.2]} 33. Qxf5
{[%clk 0:00:21.5]} 33... Rxf5 {[%clk 0:01:52.5]} 34. Rxa5 {[%clk 0:00:21.4]}
34... g6 {[%clk 0:01:51.7]} 35. b4 {[%clk 0:00:18.9]} 35... Rf2 {[%clk
0:01:44.1]} 36. Bg4 {[%clk 0:00:19.8]} 36... Nd3 {[%clk 0:01:44]} 37. b5 {[%clk
0:00:18.1]} 37... Rc2 {[%clk 0:01:42.2]} 38. b6 {[%clk 0:00:17.8]} 38... Nf2+
{[%clk 0:01:34.5]} 39. Kh2 {[%clk 0:00:17]} 39... Nxg4+ {[%clk 0:01:35.2]} 40.
hxg4 {[%clk 0:00:18.9]} 40... Rxc4 {[%clk 0:01:27.7]} 41. b7 {[%clk 0:00:17]}
41... Kg7 {[%clk 0:01:15.8]} 42. Ra8 {[%clk 0:00:16.5]} 42... Rxb7 {[%clk
0:01:16.3]} 43. Rxb7+ {[%clk 0:00:16.2]} 43... Kh6 {[%clk 0:01:17.5]} 44. Ra5
{[%clk 0:00:15.6]} 44... e3 {[%clk 0:01:13.5]} 45. g5+ {[%clk 0:00:13.5]} 45...
Kh5 {[%clk 0:01:14.5]} 46. Rxh7+ {[%clk 0:00:15.2]} 46... Kg4 {[%clk 0:01:15.6]}
47. Re7 {[%clk 0:00:16.6]} 47... Rc3 {[%clk 0:01:11.9]} 48. Re4+ {[%clk
0:00:17.2]} 48... Kh5 {[%clk 0:01:07.5]} 49. g3 {[%clk 0:00:18.2]} 49... d5
{[%clk 0:01:01.5]} 50. Rxd5 {[%clk 0:00:18.2]} 1-0

[Event "*** Titled Tuesday 3|2 Blitz"]
[Site "Chess.com"]
[Date "2015.11.03"]
[Round "4"]
[White "Sadovsky_Artem"]
[Black "Izoria123"]
[Result "0-1"]
[WhiteElo "2453"]
[BlackElo "2418"]
[TimeControl "180+2"]
[EndTime "11:49:46 PST"]
[Termination "Izoria123 won by checkmate"]

1. e4 {[%clk 0:03:01.9]} 1... c6 {[%clk 0:02:59.9]} 2. Nf3 {[%clk 0:02:59.5]}
2... d5 {[%clk 0:03:00.9]} 3. Nc3 {[%clk 0:02:49.5]} 3... Bg4 {[%clk 0:03:00.4]}
4. exd5 {[%clk 0:02:49.8]} 4... cxd5 {[%clk 0:03:00.2]} 5. h3 {[%clk 0:02:51.4]}
5... Bxf3 {[%clk 0:03:00.6]} 6. Bb5+ {[%clk 0:02:53]} 6... Nc6 {[%clk
0:03:00.5]} 7. Qxf3 {[%clk 0:02:54.7]} 7... e6 {[%clk 0:03:01.6]} 8. O-O {[%clk
0:02:56.3]} 8... Nf6 {[%clk 0:03:01.7]} 9. d4 {[%clk 0:02:55.2]} 9... Rc8 {[%clk
0:02:58]} 10. Bf4 {[%clk 0:02:55.9]} 10... a6 {[%clk 0:02:58]} 11. Bxc6+ {[%clk
0:02:56.3]} 11... Rxc6 {[%clk 0:02:59.5]} 12. Rfe1 {[%clk 0:02:55.4]} 12... Be7
{[%clk 0:02:56.1]} 13. Be5 {[%clk 0:02:48.2]} 13... O-O {[%clk 0:02:55.9]} 14.
Rac1 {[%clk 0:02:48.7]} 14... Nd7 {[%clk 0:02:53.7]} 15. Bg3 {[%clk 0:02:43.7]}
15... Bf6 {[%clk 0:02:43.6]} 16. Ne2 {[%clk 0:02:42.6]} 16... Qb6 {[%clk
0:02:41.4]} 17. Qb3 {[%clk 0:02:39.5]} 17... Bg5 {[%clk 0:02:38.1]} 18. Qxb6
{[%clk 0:02:32]} 18... Nxb6 {[%clk 0:02:20.2]} 19. Bf4 {[%clk 0:02:33.2]} 19...
Bf6 {[%clk 0:02:11.5]} 20. c3 {[%clk 0:02:32.2]} 20... Rfc8 {[%clk 0:02:09.8]}
21. g4 {[%clk 0:02:26.8]} 21... g6 {[%clk 0:02:08.8]} 22. Kg2 {[%clk 0:02:19.1]}
22... Na4 {[%clk 0:02:09.3]} 23. Rc2 {[%clk 0:02:16.3]} 23... b5 {[%clk
0:02:09.2]} 24. a3 {[%clk 0:02:15.5]} 24... a5 {[%clk 0:02:09.2]} 25. Bd2 {[%clk
0:02:16]} 25... Bg7 {[%clk 0:02:06.2]} 26. Rec1 {[%clk 0:02:12.9]} 26... Kf8
{[%clk 0:02:05.1]} 27. b3 {[%clk 0:02:04.5]} 27... Nb6 {[%clk 0:02:02.3]} 28. c4
{[%clk 0:01:59.9]} 28... a4 {[%clk 0:01:49.2]} 29. bxa4 {[%clk 0:01:32.2]} 29...
bxc4 {[%clk 0:01:27]} 30. a5 {[%clk 0:01:33.3]} 30... Nd7 {[%clk 0:01:22.6]} 31.
Bb4+ {[%clk 0:01:34.9]} 31... Ke8 {[%clk 0:01:22.8]} 32. Kf3 {[%clk 0:01:35]}
32... Ra6 {[%clk 0:01:22.2]} 33. Ke3 {[%clk 0:01:35.4]} 33... Nb8 {[%clk
0:01:22.8]} 34. Nc3 {[%clk 0:01:32]} 34... Nc6 {[%clk 0:01:22.8]} 35. Nb5 {[%clk
0:01:31.6]} 35... Kd7 {[%clk 0:01:22.2]} 36. Bc3 {[%clk 0:01:20.6]} 36... Nxa5
{[%clk 0:01:18.8]} 37. Rb1 {[%clk 0:01:21.8]} 37... Nb3 {[%clk 0:01:18.4]} 38.
f4 {[%clk 0:01:19.2]} 38... Rb8 {[%clk 0:01:17.2]} 39. a4 {[%clk 0:01:06.9]}
39... Rxa4 {[%clk 0:01:17.2]} 40. f5 {[%clk 0:00:08.7]} 40... exf5 {[%clk
0:01:14.5]} 41. gxf5 {[%clk 0:00:10.2]} 41... Rxb5 {[%clk 0:01:14.5]} 42. Kf4
{[%clk 0:00:11.8]} 42... Ra6 {[%clk 0:01:12.1]} 43. fxg6 {[%clk 0:00:10.5]}
43... hxg6 {[%clk 0:01:11.4]} 44. Re1 {[%clk 0:00:11.8]} 44... Rf6+ {[%clk
0:01:10.8]} 45. Kg5 {[%clk 0:00:12.1]} 45... Rf5+ {[%clk 0:01:09]} 46. Kg4
{[%clk 0:00:13.4]} 46... Rb6 {[%clk 0:01:09.8]} 47. Ra2 {[%clk 0:00:13.1]} 47...
Bxd4 {[%clk 0:01:09.9]} 48. Ra7+ {[%clk 0:00:13.4]} 48... Kc6 {[%clk 0:01:10.6]}
49. Bxd4 {[%clk 0:00:03.5]} 49... Nxd4 {[%clk 0:01:10.8]} 50. Ree7 {[%clk
0:00:05.2]} 50... Nb5 {[%clk 0:01:08.8]} 51. Ra8 {[%clk 0:00:03.7]} 51... Kc5
{[%clk 0:01:09]} 52. Rc8+ {[%clk 0:00:04.3]} 52... Rc6 {[%clk 0:01:10]} 53. Rb8
{[%clk 0:00:03.3]} 53... c3 {[%clk 0:01:10.3]} 54. Reb7 {[%clk 0:00:03.9]} 54...
Nd4 {[%clk 0:01:10]} 55. Rb1 {[%clk 0:00:02.2]} 55... c2 {[%clk 0:01:10.4]} 56.
Rc1 {[%clk 0:00:03.7]} 56... Kc4 {[%clk 0:01:07.5]} 57. Rb2 {[%clk 0:00:04.7]}
57... Kc3 {[%clk 0:01:08]} 58. Ra2 {[%clk 0:00:06.1]} 58... Kb3 {[%clk
0:01:07.1]} 59. Ra6 {[%clk 0:00:06.8]} 59... Rxa6 {[%clk 0:01:06.7]} 60. h4
{[%clk 0:00:04.8]} 60... Ne2 {[%clk 0:01:06.6]} 61. Re1 {[%clk 0:00:05.7]} 61...
Ra4+ {[%clk 0:01:05.6]} 62. Kh3 {[%clk 0:00:05.6]} 62... c1=Q {[%clk 0:01:05.5]}
63. Rxc1 {[%clk 0:00:06.3]} 63... Nxc1 {[%clk 0:01:05.7]} 64. h5 {[%clk
0:00:07.9]} 64... gxh5 {[%clk 0:01:05]} 65. Kg2 {[%clk 0:00:09.3]} 65... Rg4+
{[%clk 0:01:05.6]} 66. Kh3 {[%clk 0:00:11]} 66... Rfg5 {[%clk 0:01:06.7]} 67.
Kh2 {[%clk 0:00:12.6]} 67... Rh4# {[%clk 0:01:07.8]} 0-1

[Event "*** Titled Tuesday 3|2 Blitz"]
[Site "Chess.com"]
[Date "2015.11.03"]
[Round "4"]
[White "Fandorine"]
[Black "joppie2"]
[Result "1-0"]
[WhiteElo "2531"]
[BlackElo "2337"]
[TimeControl "180+2"]
[EndTime "11:50:35 PST"]
[Termination "Fandorine won by resignation"]

1. e4 {[%clk 0:03:01.9]} 1... e5 {[%clk 0:02:55.6]} 2. Nf3 {[%clk 0:03:01.3]}
2... Nc6 {[%clk 0:02:56.3]} 3. Nc3 {[%clk 0:03:01.6]} 3... Nf6 {[%clk
0:02:53.8]} 4. g3 {[%clk 0:03:03]} 4... Bc5 {[%clk 0:02:52.6]} 5. Bg2 {[%clk
0:03:03.7]} 5... d6 {[%clk 0:02:53.8]} 6. d3 {[%clk 0:03:03.9]} 6... Be6 {[%clk
0:02:53]} 7. h3 {[%clk 0:03:00.5]} 7... Qd7 {[%clk 0:02:52.9]} 8. Ng5 {[%clk
0:03:00.7]} 8... a6 {[%clk 0:02:51.4]} 9. O-O {[%clk 0:03:00.6]} 9... O-O-O
{[%clk 0:02:51.1]} 10. a3 {[%clk 0:02:56.9]} 10... h6 {[%clk 0:02:43.3]} 11.
Nxe6 {[%clk 0:02:58.3]} 11... Qxe6 {[%clk 0:02:40.2]} 12. Nd5 {[%clk 0:02:57.2]}
12... g5 {[%clk 0:02:34.4]} 13. b4 {[%clk 0:02:52]} 13... Ba7 {[%clk 0:02:34.8]}
14. a4 {[%clk 0:02:51.4]} 14... Ne7 {[%clk 0:02:26.5]} 15. Nxf6 {[%clk
0:02:23.9]} 15... Qxf6 {[%clk 0:02:28.4]} 16. c4 {[%clk 0:02:18.7]} 16... Bd4
{[%clk 0:02:27.4]} 17. Ra2 {[%clk 0:02:16.1]} 17... h5 {[%clk 0:02:28.8]} 18. a5
{[%clk 0:02:14.9]} 18... h4 {[%clk 0:02:29.1]} 19. Kh1 {[%clk 0:02:06.8]} 19...
Kb8 {[%clk 0:02:24.5]} 20. b5 {[%clk 0:02:06.8]} 20... g4 {[%clk 0:02:20.8]} 21.
Qxg4 {[%clk 0:01:30.7]} 21... Rdg8 {[%clk 0:02:19.9]} 22. Qd7 {[%clk 0:01:21.5]}
22... Rd8 {[%clk 0:02:13.6]} 23. Qg4 {[%clk 0:01:20.8]} 23... Rdg8 {[%clk
0:02:13.8]} 24. Qd1 {[%clk 0:00:29.2]} 24... hxg3 {[%clk 0:02:12.7]} 25. fxg3
{[%clk 0:00:30.3]} 25... Qe6 {[%clk 0:02:12.1]} 26. Kh2 {[%clk 0:00:31.5]} 26...
f5 {[%clk 0:01:49.9]} 27. exf5 {[%clk 0:00:29.7]} 27... Nxf5 {[%clk 0:01:50.9]}
28. Qf3 {[%clk 0:00:29.8]} 28... e4 {[%clk 0:01:26.1]} 29. Qxf5 {[%clk
0:00:29.6]} 29... Qxf5 {[%clk 0:01:12.2]} 30. Rxf5 {[%clk 0:00:30.9]} 30... exd3
{[%clk 0:01:13.8]} 31. bxa6 {[%clk 0:00:31.5]} 31... Re8 {[%clk 0:01:09.5]} 32.
Rd5 {[%clk 0:00:28.5]} 32... Re2 {[%clk 0:01:08.2]} 33. Rxe2 {[%clk 0:00:24.2]}
33... dxe2 {[%clk 0:01:10.1]} 34. Bd2 {[%clk 0:00:25]} 34... Bf2 {[%clk
0:01:11.3]} 35. Rb5 {[%clk 0:00:26.4]} 35... Ka7 {[%clk 0:01:08.8]} 36. Rxb7+
{[%clk 0:00:20.5]} 36... Kxa6 {[%clk 0:01:09.9]} 37. Rb1 {[%clk 0:00:21.1]}
37... Rf8 {[%clk 0:00:54.3]} 38. Be1 {[%clk 0:00:20]} 38... Bd4 {[%clk
0:00:53.5]} 39. Bb7+ {[%clk 0:00:09.6]} 39... Ka7 {[%clk 0:00:54.3]} 40. Kg2
{[%clk 0:00:10.5]} 40... Rf1 {[%clk 0:00:52.2]} 41. Bf3 {[%clk 0:00:10.3]} 41...
Rg1+ {[%clk 0:00:20.8]} 42. Kh2 {[%clk 0:00:10.6]} 42... c5 {[%clk 0:00:19.3]}
43. Bxe2 {[%clk 0:00:08.3]} 43... Bf2 {[%clk 0:00:20.5]} 44. Bxf2 {[%clk
0:00:03.3]} 44... Rxb1 {[%clk 0:00:21.4]} 45. Bf3 {[%clk 0:00:04.9]} 45... Ra1
{[%clk 0:00:21]} 46. Kg2 {[%clk 0:00:06.2]} 46... Rxa5 {[%clk 0:00:19.2]} 47.
Bd5 {[%clk 0:00:07.9]} 47... Kb6 {[%clk 0:00:18.9]} 48. h4 {[%clk 0:00:09.5]}
48... Kc7 {[%clk 0:00:20.5]} 49. h5 {[%clk 0:00:11]} 49... Ra7 {[%clk
0:00:11.3]} 50. h6 {[%clk 0:00:11.2]} 50... Kd8 {[%clk 0:00:13.2]} 51. g4 {[%clk
0:00:12.2]} 51... Ke8 {[%clk 0:00:12.1]} 52. g5 {[%clk 0:00:13.2]} 52... Kf8
{[%clk 0:00:13.1]} 53. g6 {[%clk 0:00:14.2]} 53... Re7 {[%clk 0:00:14.1]} 54.
Bg3 {[%clk 0:00:14.2]} 54... Re2+ {[%clk 0:00:11.6]} 55. Kf3 {[%clk 0:00:15.6]}
55... Rd2 {[%clk 0:00:11.8]} 56. Bxd6+ {[%clk 0:00:16.1]} 56... Ke8 {[%clk
0:00:13]} 57. g7 {[%clk 0:00:16.4]} 57... Rd3+ {[%clk 0:00:11.8]} 58. Ke4 {[%clk
0:00:16.8]} 58... Rd4+ {[%clk 0:00:12.9]} 59. Kf5 {[%clk 0:00:17.1]} 59... Kd7
{[%clk 0:00:09.9]} 60. Bxc5 {[%clk 0:00:16.6]} 60... Rh4 {[%clk 0:00:07.6]} 61.
g8=Q {[%clk 0:00:14.8]} 61... Rh5+ {[%clk 0:00:08.6]} 62. Kg4 {[%clk 0:00:15.5]}
62... Re5 {[%clk 0:00:04.7]} 63. Qf7+ {[%clk 0:00:15.5]} 1-0